bitfinex-derivatives/quotes_ETHF0:USTF0_20260201
["timestamp","ask_amount","ask_price","bid_price","bid_amount"]
[1769968975684,2.46811259,2343.6,2340.5,0.13612037]
[1769968975888,2.46811259,2343.4,2340.9,0.13612037]
[1769968976185,2.46811259,2343.2,2339.5,0.1416104]
[1769968976383,2.46811259,2343.0,2339.5,0.1416104]
[1769968976681,0.21341,2344.9,2340.7,2.52149098]
[1769968976885,0.21341,2344.9,2339.6,3.863]
[1769968976886,0.21333,2345.8,2341.9,2.30770098]
[1769968977082,3.8672624,2346.1,2342.1,2.30770098]
[1769968977280,2.517,2346.0,2342.1,2.30770098]
[1769968977482,4.81890265,2350.0,2344.3,2.30770098]
[1769968977679,0.21283,2351.3,2345.6,2.30770098]
[1769968977879,6.377,2351.2,2345.8,2.30770098]
[1769968978081,2.516,2351.1,2346.4,3.36403917]
[1769968978282,0.21295,2349.9,2346.4,0.00503175]
[1769968978480,33.399,2349.8,2346.4,0.00503175]
[1769968978684,2.46811259,2348.8,2346.4,0.00503175]
[1769968978886,2.46811259,2348.8,2346.4,2.31273273]
[1769968979191,2.515,2348.9,2346.4,2.31273273]
[1769968979387,18.06001176,2349.5,2346.4,0.00503175]
[1769968979684,3.858,2349.2,2346.4,0.00503175]
[1769968979887,0.21312,2348.1,2344.3,2.30770098]
[1769968980087,29.508,2348.0,2344.3,2.30770098]
[1769968980288,0.2132,2347.2,2342.9,2.30770098]
[1769968980586,6.369,2348.4,2344.2,2.30770098]
[1769968980888,6.368,2348.3,2344.4,2.30770098]
[1769968981088,2.46811259,2348.2,2344.4,2.30770098]
[1769968981389,2.46811259,2348.0,2344.4,2.30770098]
[1769968981584,2.46811259,2347.8,2344.4,2.30770098]
[1769968981787,2.46811259,2347.2,2344.4,2.30770098]
[1769968981989,2.46811259,2347.7,2344.4,2.30770098]
[1769968982191,2.46811259,2347.6,2344.4,2.30770098]
[1769968982390,2.46811259,2347.4,2344.4,2.30770098]
[1769968982686,0.00432225,2348.4,2345.0,2.30770098]
[1769968982687,2.46811259,2348.3,2345.0,2.30770098]
[1769968982884,2.46811259,2348.3,2344.5,3.36403917]
[1769968982885,2.46811259,2348.3,2345.9,2.30770098]
[1769968983081,0.00432225,2348.4,2345.9,2.31262844]
[1769968983282,18.06433401,2348.4,2345.9,2.31262844]
[1769968983486,2.46811259,2347.6,2345.9,2.31262844]
[1769968983687,2.46811259,2348.1,2345.9,2.31262844]
[1769968983896,2.46811259,2347.0,2344.3,2.30770098]
[1769968984191,2.46811259,2346.1,2343.2,2.33474015]
[1769968984387,2.46811259,2345.3,2342.0,3.85]
[1769968984688,2.46811259,2345.0,2341.6,2.509]
[1769968984993,2.47261132,2345.0,2341.6,0.00314893]
[1769968985188,2.46811259,2344.8,2341.6,0.00314893]
[1769968985389,0.00449873,2345.0,2342.1,3.36403917]
[1769968985589,0.00449873,2345.0,2342.0,0.21367]
[1769968985786,0.00449873,2345.0,2342.6,3.36403917]
[1769968985990,0.00449873,2345.0,2342.7,3.849]
[1769968986188,0.00449873,2345.0,2341.7,5.87303917]
[1769968986189,2.47261132,2345.0,2342.3,2.30770098]
[1769968986396,2.46811259,2344.6,2342.3,2.30770098]
[1769968986594,2.46811259,2343.3,2341.6,0.00314893]
[1769968986893,2.46811259,2343.1,2341.6,0.00314893]
[1769968987288,2.46811259,2342.6,2340.6,2.30770098]
[1769968987493,2.35465723,2342.3,2339.3,2.31555639]
[1769968987689,2.35465723,2342.3,2339.7,2.31555639]
[1769968987886,2.35465723,2343.2,2339.9,2.31555639]
[1769968988094,2.35465723,2345.4,2342.5,2.31555639]
[1769968988293,2.35465723,2345.4,2342.7,2.31555639]
[1769968988588,2.35465723,2345.4,2343.1,2.31555639]
[1769968988893,2.35465723,2346.7,2343.7,2.31555639]
[1769968989088,2.35465723,2345.6,2343.7,2.31913567]
[1769968989290,2.35465723,2346.2,2343.7,2.31913567]
[1769968989488,2.35465723,2345.7,2343.7,0.00357928]
[1769968989688,2.35465723,2345.5,2343.7,0.00357928]
[1769968989890,2.35465723,2344.2,2342.1,2.31555639]
[1769968990088,2.35465723,2343.8,2341.5,2.31555639]
[1769968990289,2.56818723,2343.6,2341.5,2.31555639]
[1769968990488,3.36403917,2346.1,2340.9,2.31555639]
[1769968990489,2.35465723,2343.4,2340.9,2.31555639]
[1769968990690,2.35465723,2342.5,2340.2,2.31555639]
[1769968990896,0.00405579,2342.5,2340.4,2.31555639]
[1769968991292,2.35465723,2342.4,2340.4,2.31555639]
[1769968991493,2.35871302,2342.5,2340.4,2.31555639]
[1769968991791,2.35465723,2342.1,2340.4,2.31555639]
[1769968991992,2.40871302,2342.5,2340.4,2.31555639]
[1769968992192,2.35465723,2342.2,2340.4,2.31555639]
[1769968992896,0.05405579,2342.5,2340.8,2.52932639]
[1769968993095,2.35465723,2343.9,2341.9,2.31555639]
[1769968993397,26.928,2345.5,2341.1,3.36403917]
[1769968993398,2.35465723,2345.8,2343.3,2.52910639]
[1769968993597,2.35465723,2345.8,2343.4,3.846]
[1769968993792,3.846,2346.2,2342.8,2.31555639]
[1769968993793,2.35465723,2345.0,2342.8,2.31555639]
[1769968993995,2.35465723,2343.9,2341.6,2.31555639]
[1769968994294,2.35465723,2343.3,2341.6,0.00520476]
[1769968994698,2.35465723,2343.1,2341.6,0.00520476]
[1769968995095,0.00488634,2343.9,2341.6,2.32076115]
[1769968995393,0.00488634,2343.9,2342.1,2.31555639]
[1769968995596,2.35465723,2343.1,2341.6,0.00520476]
[1769968995794,2.35465723,2343.1,2341.1,2.31555639]
[1769968995795,2.35465723,2342.5,2340.1,2.31555639]
[1769968995999,2.35465723,2342.2,2340.1,2.31555639]
[1769968996195,2.35465723,2342.0,2340.1,2.31555639]
[1769968996392,2.35465723,2342.5,2340.6,2.31555639]
[1769968996597,0.21352,2343.7,2340.8,2.31555639]
[1769968996598,0.21356,2343.2,2340.8,2.31555639]
[1769968996802,0.21356,2343.2,2340.8,2.32103007]
[1769968996803,2.35465723,2343.1,2340.8,2.32103007]
[1769968997002,2.35465723,2342.6,2340.8,0.00547368]
[1769968997302,2.35465723,2342.3,2340.8,0.00547368]
[1769968997504,2.35465723,2342.8,2340.8,6.16703007]
[1769968997698,0.00327919,2343.2,2342.1,2.31555639]
[1769968998406,0.00327919,2343.2,2341.8,4.05968]
[1769968998407,2.35465723,2343.5,2341.8,6.16155639]
[1769968998603,2.35465723,2343.5,2341.9,2.31555639]
[1769968998798,2.35465723,2344.1,2341.9,2.31555639]
[1769968998999,11.59416915,2343.6,2341.9,2.31555639]
[1769968999200,2.35863662,2343.6,2341.9,2.31555639]
[1769968999404,11.59416915,2343.3,2341.9,2.31555639]
[1769968999600,2.35465723,2343.2,2341.2,2.31555639]
[1769968999801,2.35465723,2342.9,2340.8,0.00547368]
[1769969000107,2.35465723,2342.4,2340.8,0.00547368]
[1769969000406,2.35465723,2342.2,2340.8,0.00547368]
[1769969000607,2.35465723,2341.7,2340.8,0.00547368]
[1769969000906,2.35465723,2342.3,2340.8,0.00547368]
[1769969001200,2.35465723,2342.8,2340.8,4.85338542]
[1769969001399,2.35465723,2342.8,2340.8,2.53481007]
[1769969001600,2.35465723,2342.8,2341.2,4.63413174]
[1769969001801,26.922,2346.3,2343.1,2.31555639]
[1769969002001,26.922,2346.3,2343.5,2.31555639]
[1769969002002,0.00436749,2346.3,2343.5,2.31555639]
[1769969002203,11.81181664,2346.3,2344.0,2.31857535]
[1769969002405,0.00436749,2346.3,2344.2,4.84760174]
[1769969002603,0.00436749,2346.3,2344.7,2.31857535]
[1769969002803,0.00436749,2346.3,2344.8,8.93382597]
[1769969003107,11.59416915,2346.0,2344.8,0.00364373]
[1769969003404,0.2133,2346.1,2344.0,4.47321172]
[1769969003605,5.80548747,2345.5,2344.1,6.40453967]
[1769969003805,8.1601447,2345.6,2343.7,6.78876811]
[1769969004108,2.35465723,2344.9,2343.1,2.31555639]
[1769969004304,2.35465723,2344.9,2343.4,0.21354]
[1769969004606,2.35465723,2345.8,2343.5,10.87962807]
[1769969004807,6.19965723,2345.3,2343.6,6.40641635]
[1769969005006,2.35465723,2345.1,2343.7,6.40641635]
[1769969005204,2.35465723,2344.7,2343.8,6.40641635]
[1769969005408,2.35465723,2343.8,2342.5,5.65490522]
[1769969005607,2.35465723,2344.3,2342.4,7.97046161]
[1769969005908,2.35465723,2344.3,2342.4,2.31555639]
[1769969006208,2.35465723,2345.7,2342.8,2.52914639]
[1769969006506,2.35465723,2344.8,2342.8,0.0038298]
[1769969006706,2.35465723,2344.4,2342.8,2.31938619]
[1769969007010,2.35465723,2345.5,2343.8,0.2135]
[1769969007208,2.35465723,2345.5,2343.5,10.16645072]
[1769969007403,2.35465723,2345.4,2343.6,0.66716842]
[1769969007607,2.35465723,2345.4,2344.0,0.21348]
[1769969008104,8.1601447,2345.4,2343.8,0.66713218]
[1769969008307,2.35465723,2345.3,2343.6,7.97046161]
[1769969008607,2.35465723,2345.3,2343.5,3.844]
[1769969008608,2.35465723,2345.3,2343.8,0.2135]
[1769969008802,2.35465723,2345.3,2343.8,0.66715477]
[1769969009008,2.35465723,2345.3,2343.5,9.49890522]
[1769969009209,5.80548747,2345.0,2343.6,0.6671933]
[1769969009411,2.35465723,2345.3,2343.1,5.65490522]
[1769969009412,8.1601447,2344.6,2343.1,5.65490522]
[1769969009605,2.35465723,2344.6,2343.2,0.66736937]
[1769969009804,5.80548747,2344.5,2343.3,0.66736937]
[1769969010009,5.80548747,2344.1,2342.8,0.0038298]
[1769969010205,2.35465723,2344.4,2342.9,0.66746212]
[1769969010407,2.35465723,2344.2,2342.8,0.0038298]
[1769969010804,8.1601447,2344.2,2342.9,6.32243464]
[1769969011108,8.1601447,2344.2,2342.8,0.0038298]
[1769969011109,5.80548747,2344.0,2342.8,0.0038298]
[1769969011309,0.0054911,2344.0,2342.9,6.32234589]
[1769969011510,0.0054911,2344.0,2342.8,5.65873502]
[1769969011710,5.80548747,2343.8,2342.9,0.66744296]
[1769969011912,5.80548747,2343.4,2342.8,0.0038298]
[1769969012112,2.35465723,2343.8,2342.8,0.0038298]
[1769969012506,5.80548747,2343.4,2342.8,0.0038298]
[1769969013008,5.80548747,2342.9,2342.4,6.32240106]
[1769969013212,2.56817723,2343.7,2342.5,0.66749584]
[1769969013413,2.56817723,2343.7,2342.6,0.66760227]
[1769969013414,2.35465723,2343.6,2342.6,0.66760227]
[1769969013613,2.35465723,2343.6,2342.3,7.69793491]
[1769969013614,2.35465723,2343.6,2342.3,5.65490522]
[1769969013809,2.35465723,2343.6,2342.0,7.69793491]
[1769969013810,2.35465723,2343.6,2342.1,5.65490522]
[1769969014012,2.35465723,2343.0,2342.2,0.66766505]
[1769969014210,2.35465723,2343.0,2341.5,9.40052122]
[1769969014211,2.35465723,2342.6,2341.0,10.0134913]
[1769969014516,2.35465723,2342.6,2340.6,10.0134913]
[1769969014717,8.1601447,2342.3,2340.6,2.31555639]
[1769969015116,5.80548747,2342.1,2340.6,2.32022602]
[1769969015313,5.80548747,2341.9,2340.6,2.32022602]
[1769969015513,5.80548747,2341.7,2340.6,2.32022602]
[1769969015720,5.80548747,2341.7,2340.6,0.00466963]
[1769969015915,2.35465723,2342.1,2340.6,0.00466963]
[1769969016119,0.21683588,2342.3,2340.6,0.00466963]
[1769969016120,5.80548747,2341.5,2340.6,0.00466963]
[1769969016319,5.80548747,2341.8,2340.6,0.00466963]
[1769969016522,5.80548747,2341.3,2339.6,2.31555639]
[1769969016721,2.35465723,2341.1,2339.2,2.31555639]
[1769969016918,2.35465723,2340.9,2339.2,2.31555639]
[1769969017122,8.1601447,2340.6,2339.2,2.31555639]
[1769969017415,2.35465723,2340.5,2339.3,5.62845038]
[1769969017621,2.36015161,2340.5,2339.3,0.00500673]
[1769969017921,5.80548747,2339.6,2338.3,2.28392981]
[1769969018122,2.45991496,2340.0,2338.4,5.60110513]
[1769969018318,2.45991496,2339.8,2338.2,5.59366305]
[1769969018520,2.45991496,2339.8,2338.0,2.28392981]
[1769969018715,2.45991496,2339.7,2338.1,5.59366305]
[1769969019025,2.45991496,2339.3,2338.1,0.00410523]
[1769969019224,2.45991496,2339.0,2338.1,0.00410523]
[1769969019424,2.45991496,2338.9,2337.2,5.59366305]
[1769969019723,2.45991496,2339.3,2337.4,2.28392981]
[1769969019918,2.45991496,2339.3,2337.5,7.87759286]
[1769969020119,2.45991496,2339.0,2337.5,2.28392981]
[1769969020420,2.45991496,2339.0,2337.5,2.28904161]
[1769969020924,5.80548747,2338.9,2337.5,2.28904161]
[1769969021222,5.80548747,2338.5,2337.5,0.0051118]
[1769969021417,8.26540243,2338.4,2337.5,0.0051118]
[1769969021621,2.45991496,2338.0,2336.5,2.28392981]
[1769969022024,2.46358299,2338.5,2336.6,2.28392981]
[1769969022416,0.00366803,2338.5,2336.6,2.28392981]
[1769969022622,0.00366803,2338.5,2336.8,2.28392981]
[1769969023923,2.46358299,2338.5,2336.8,2.28392981]
[1769969024125,5.80548747,2338.4,2336.8,2.28392981]
[1769969024324,5.80548747,2338.2,2336.8,2.28392981]
[1769969024523,5.80548747,2338.4,2336.8,2.28392981]
[1769969024721,0.00366803,2338.5,2336.8,2.28392981]
[1769969025120,5.80548747,2338.4,2336.8,2.28392981]
[1769969025626,5.80548747,2338.3,2336.8,2.28392981]
[1769969025925,2.61468492,2338.4,2336.8,2.28392981]
[1769969026228,5.80548747,2338.3,2336.8,2.28392981]
[1769969026725,5.80548747,2338.2,2336.8,2.28392981]
[1769969027022,0.00366803,2338.5,2336.8,2.28392981]
[1769969027325,0.00366803,2338.5,2337.0,2.66641942]
[1769969028127,0.00366803,2338.5,2337.2,2.45229942]
[1769969028328,0.00366803,2338.5,2337.6,2.45229942]
[1769969028625,2.61460492,2339.3,2338.9,1e-08]
[1769969028821,2.40068492,2339.3,2338.9,1e-08]
[1769969029018,5.70296539,2339.1,2338.9,1e-08]
[1769969029220,5.69578229,2339.2,2338.9,1e-08]
[1769969029423,5.69578229,2339.0,2337.8,2.45229942]
[1769969029627,0.00468022,2339.0,2337.8,2.45664183]
[1769969030128,5.69578229,2338.8,2337.8,2.45664183]
[1769969030426,0.00468022,2339.0,2337.8,2.45664183]
[1769969030828,2.40068492,2339.9,2338.0,2.66632942]
[1769969031022,0.21383,2340.2,2337.8,0.00434241]
[1769969031023,0.21383,2340.2,2338.4,2.66628942]
[1769969031224,2.40068492,2340.1,2338.6,2.45229942]
[1769969031427,2.40068492,2339.6,2338.1,2.45229942]
[1769969031629,2.40068492,2339.4,2337.9,3.85]
[1769969031928,5.69578229,2338.9,2337.9,3.85]
[1769969032129,5.69578229,2338.8,2337.9,3.85]
[1769969032327,5.69578229,2338.7,2337.9,3.85]
[1769969032629,5.69578229,2338.2,2337.8,0.00434241]
[1769969032928,5.69578229,2337.9,2336.9,3.85]
[1769969033129,2.40068492,2338.3,2336.9,6.30229942]
[1769969033329,2.40068492,2338.8,2337.2,2.66639942]
[1769969033526,8.09646721,2339.3,2337.2,2.66639942]
[1769969033726,5.69578229,2339.2,2337.4,2.66638942]
[1769969033930,8.31044721,2338.7,2337.4,2.4570305]
[1769969034133,2.40068492,2338.7,2337.4,2.4570305]
[1769969034328,5.69578229,2338.6,2337.4,2.4570305]
[1769969034524,5.69578229,2338.0,2336.5,11.63141796]
[1769969034728,5.69578229,2338.0,2337.0,2.45229942]
[1769969034924,2.40068492,2338.7,2338.0,0.03630977]
[1769969035232,2.40068492,2339.1,2338.0,0.03630977]
[1769969035628,5.69578229,2338.6,2338.0,0.04087702]
[1769969035831,5.69578229,2338.2,2338.0,0.00048205]
[1769969036033,0.21402,2338.2,2336.4,2.45229942]
[1769969036232,2.40068492,2339.3,2336.8,2.45229942]
[1769969036533,2.61464492,2338.9,2337.3,5.82004722]
[1769969036733,2.40068492,2338.9,2337.4,2.45229942]
[1769969036934,5.69578229,2338.8,2337.4,2.45703171]
[1769969037131,2.40068492,2339.3,2337.9,3.3677478]
[1769969037332,2.40068492,2339.3,2338.0,2.45229942]
[1769969037533,5.69578229,2339.2,2338.1,2.45229942]
[1769969037731,2.40430386,2339.4,2338.1,2.45229942]
[1769969038033,5.69578229,2339.0,2337.8,2.45229942]
[1769969038237,0.00361894,2339.4,2338.1,5.82004722]
[1769969038432,0.00361894,2339.4,2338.2,2.45229942]
[1769969038836,0.00361894,2339.4,2338.7,5.82004722]
[1769969039337,2.21022895,2339.4,2338.7,5.82004722]
[1769969039537,2.40068492,2340.1,2338.7,5.82004722]
[1769969039740,0.57679959,2339.8,2338.7,5.82004722]
[1769969040232,0.57679959,2339.1,2338.3,9.21274662]
[1769969040533,3.851,2340.9,2337.7,4.327]
[1769969040534,2.50560133,2340.5,2339.0,3.3677478]
[1769969040736,2.50560133,2340.5,2339.1,7.54688339]
[1769969040935,2.50560133,2340.1,2338.8,3.69588339]
[1769969041135,0.58148821,2338.9,2337.6,3.69588339]
[1769969041336,2.50560133,2338.3,2337.2,3.69588339]
[1769969041532,2.51001735,2338.3,2337.2,0.00353998]
[1769969041732,0.58148821,2337.3,2336.8,3.69588339]
[1769969041932,0.00441602,2338.3,2336.5,3.69588339]
[1769969042135,0.58148821,2337.9,2336.6,5.48212665]
[1769969042335,0.00441602,2338.3,2336.7,5.48212665]
[1769969042536,0.21403,2338.1,2336.1,3.69588339]
[1769969042735,2.509,2338.0,2336.1,0.00517051]
[1769969043035,0.2141,2337.3,2335.4,5.41708789]
[1769969043240,29.466,2338.0,2335.2,3.69588339]
[1769969043241,0.58148821,2336.8,2335.2,3.69588339]
[1769969043438,0.58148821,2336.7,2335.3,5.40601601]
[1769969043741,3.08221281,2336.2,2335.1,3.69588339]
[1769969043938,0.58148821,2335.9,2335.1,0.00440993]
[1769969044139,2.5007246,2335.4,2334.5,5.39573758]
[1769969044336,2.40068492,2335.9,2334.3,3.3677478]
[1769969044532,0.00373316,2336.2,2334.9,3.3677478]
[1769969044733,2.40441808,2336.2,2334.8,3.69588339]
[1769969044938,0.18352308,2336.0,2334.7,6.14818281]
[1769969045138,0.00373316,2336.2,2334.9,2.45229942]
[1769969045336,0.00373316,2336.2,2334.7,3.7000004]
[1769969045337,2.40068492,2335.8,2334.7,0.00411701]
[1769969045541,2.40068492,2335.4,2334.0,3.69588339]
[1769969045844,0.18352308,2335.7,2334.3,3.3677478]
[1769969046041,2.584208,2335.8,2334.1,2.45229942]
[1769969046238,0.00373316,2336.2,2335.0,5.82004722]
[1769969046442,2.40068492,2337.2,2335.6,5.82004722]
[1769969046643,2.40068492,2337.7,2335.8,2.45229942]
[1769969046843,2.40068492,2337.3,2335.8,2.45229942]
[1769969047048,0.18352308,2337.1,2335.8,2.45229942]
[1769969047344,2.584208,2336.2,2335.0,0.00433732]
[1769969047545,0.00392192,2336.2,2335.0,0.00433732]
[1769969047846,0.18352308,2335.4,2335.0,0.00433732]
[1769969048040,0.00392192,2336.2,2335.0,0.00433732]
[1769969048246,0.13494995,2335.4,2335.0,0.00433732]
[1769969048438,0.13494995,2335.7,2335.0,0.00433732]
[1769969048840,0.13494995,2335.4,2335.0,0.00433732]
[1769969049043,2.39247723,2336.2,2334.1,2.3812469]
[1769969049044,0.13494995,2335.1,2334.1,2.3812469]
[1769969049243,2.38855531,2336.0,2334.4,2.3812469]
[1769969049443,2.38855531,2335.8,2334.5,2.3812469]
[1769969049648,0.13494995,2336.0,2334.5,2.3812469]
[1769969049943,2.52742718,2336.2,2334.5,2.3812469]
[1769969050142,0.13494995,2336.1,2335.0,2.3812469]
[1769969050348,0.13494995,2336.0,2334.6,6.2342469]
[1769969050647,0.00392192,2336.2,2335.0,2.3812469]
[1769969050946,0.00392192,2336.2,2334.6,3.853]
[1769969050947,2.39247723,2336.2,2334.6,3.853]
[1769969051144,0.13494995,2335.9,2334.7,2.3812469]
[1769969051344,2.38855531,2336.1,2334.7,2.3812469]
[1769969051542,0.13494995,2335.4,2334.6,3.853]
[1769969051750,0.13494995,2335.8,2334.6,6.2342469]
[1769969051949,0.13494995,2335.7,2334.6,6.2342469]
[1769969052149,2.38855531,2336.1,2334.6,6.2342469]
[1769969052345,0.13494995,2335.5,2334.5,0.00536088]
[1769969052551,0.13494995,2335.6,2334.6,2.3812469]
[1769969052754,0.13494995,2335.9,2334.6,2.3812469]
[1769969052950,0.00392192,2336.2,2335.0,2.3812469]
[1769969053153,2.38855531,2337.3,2336.0,2.3812469]
[1769969053553,0.13887187,2336.9,2336.0,2.3812469]
[1769969053853,2.38855531,2338.1,2336.6,2.3812469]
[1769969054054,2.38855531,2338.1,2337.0,2.3812469]
[1769969054055,0.00416917,2338.1,2337.0,2.3812469]
[1769969054350,2.38855531,2339.1,2337.1,2.3812469]
[1769969054554,3.855,2339.9,2337.4,5.7489947]
[1769969054555,2.38855531,2338.7,2337.4,5.7489947]
[1769969054854,2.38855531,2339.5,2338.1,2.3812469]
[1769969055050,2.38855531,2339.5,2337.5,2.3812469]
[1769969055353,0.13887187,2338.4,2337.1,2.3812469]
[1769969055649,2.38855531,2338.0,2336.6,0.00375482]
[1769969055855,2.38855531,2337.6,2336.6,0.00375482]
[1769969056156,2.38855531,2337.0,2335.7,2.3812469]
[1769969056353,0.13887187,2336.9,2335.7,2.3812469]
[1769969056548,2.38855531,2337.0,2335.3,2.3812469]
[1769969056549,0.13887187,2336.3,2335.3,2.3812469]
[1769969056752,0.13887187,2336.8,2335.3,2.3812469]
[1769969057251,0.13887187,2336.3,2335.3,2.3812469]
[1769969057453,0.13887187,2336.6,2335.3,2.3812469]
[1769969057649,0.13887187,2336.7,2335.3,2.3812469]
[1769969057850,0.13887187,2337.0,2335.6,2.3812469]
[1769969058056,0.13887187,2337.1,2335.6,2.3812469]
[1769969058251,0.13887187,2336.9,2335.6,2.3812469]
[1769969058657,0.00542388,2337.6,2335.6,2.3812469]
[1769969058959,0.00542388,2337.6,2336.9,2.3812469]
[1769969059256,2.38855531,2338.6,2337.0,2.3812469]
[1769969059855,2.38855531,2338.6,2337.0,6.2352469]
[1769969061151,2.38855531,2339.0,2337.4,5.7489947]
[1769969061349,2.38855531,2339.0,2337.5,2.3812469]
[1769969061552,2.38855531,2339.0,2337.4,3.3677478]
[1769969061553,2.38855531,2339.7,2338.0,5.7489947]
[1769969061753,2.38855531,2339.7,2338.3,2.3812469]
[1769969061950,2.38855531,2339.7,2338.0,3.854]
[1769969062149,2.38855531,2339.7,2338.1,2.3812469]
[1769969063359,2.38855531,2339.7,2338.0,3.854]
[1769969063554,2.38855531,2339.7,2337.2,4.99719852]
[1769969063555,2.38855531,2339.5,2337.6,3.3677478]
[1769969063756,2.38855531,2339.3,2337.6,3.3677478]
[1769969064058,2.38855531,2339.1,2337.3,2.3812469]
[1769969064455,2.38855531,2339.1,2337.6,2.3812469]
[1769969065157,2.38855531,2339.1,2337.8,5.7489947]
[1769969065359,2.38855531,2339.1,2337.3,2.3812469]
[1769969066057,2.38855531,2339.1,2337.7,2.3812469]
[1769969066459,2.38855531,2339.6,2337.9,2.3812469]
[1769969066657,0.05,2339.7,2338.4,5.7489947]
[1769969066865,0.05,2339.7,2338.5,2.3812469]
[1769969067253,2.43855531,2339.7,2338.1,2.3812469]
[1769969067959,2.43855531,2339.7,2338.0,3.853]
[1769969067960,2.38855531,2339.5,2338.0,3.853]
[1769969068456,2.38855531,2339.5,2338.0,6.2342469]
[1769969068864,2.38855531,2339.5,2337.5,2.3812469]
[1769969069160,2.38855531,2339.5,2337.8,2.3812469]
[1769969070862,0.05,2339.7,2338.3,2.3812469]
[1769969071058,2.38855531,2340.7,2339.2,0.21392]
[1769969071260,6.24055531,2341.1,2339.7,0.21388]
[1769969071458,6.24055531,2341.1,2339.8,2.5951169]
[1769969071755,2.38855531,2340.3,2338.8,3.3677478]
[1769969071960,2.38855531,2340.3,2338.9,2.3812469]
[1769969072157,2.38855531,2340.9,2339.5,2.3812469]
[1769969072358,0.21374,2341.2,2339.7,2.3812469]
[1769969072560,2.38855531,2340.9,2338.9,2.3812469]
[1769969072761,2.60232531,2340.9,2338.9,2.3812469]
[1769969073063,2.60235531,2340.6,2338.9,2.3812469]
[1769969073262,2.38855531,2340.6,2338.9,2.3812469]
[1769969073660,2.38855531,2340.4,2338.8,3.852]
[1769969073863,2.38855531,2340.2,2338.2,2.3812469]
[1769969074161,2.38855531,2340.1,2338.2,2.3812469]
[1769969074366,2.38855531,2339.9,2338.2,2.3812469]
[1769969074565,3.851,2340.1,2337.9,3.852]
[1769969074566,2.38855531,2339.4,2337.9,3.852]
[1769969074760,2.38855531,2339.1,2337.6,2.3812469]
[1769969075266,2.38855531,2339.8,2338.4,2.3812469]
[1769969076162,2.38855531,2340.7,2338.6,0.21398]
[1769969076367,2.38855531,2340.5,2338.6,2.5952269]
[1769969076562,2.38855531,2340.5,2338.8,2.5952069]
[1769969076762,2.38855531,2340.5,2338.8,2.3812469]
[1769969077260,2.38855531,2340.5,2338.9,0.21395]
[1769969077460,2.581749,2341.3,2339.2,2.45929257]
[1769969077663,2.368019,2341.3,2339.4,2.45929257]
[1769969078061,2.368019,2341.3,2339.6,2.45929257]
[1769969078663,2.368019,2341.3,2339.8,2.67316257]
[1769969079564,2.368019,2341.7,2340.2,2.45929257]
[1769969079964,2.368019,2341.7,2339.8,2.45929257]
[1769969080662,2.368019,2341.7,2339.5,3.3677478]
[1769969080860,2.581759,2341.3,2339.3,2.45929257]
[1769969081061,2.368019,2340.8,2338.9,2.45929257]
[1769969081266,2.368019,2340.3,2338.5,5.82704037]
[1769969081771,2.368019,2340.1,2338.1,2.45929257]
[1769969082071,2.368019,2340.1,2338.3,2.45929257]
[1769969082265,2.581859,2340.1,2338.3,2.45929257]
[1769969082471,2.368019,2339.9,2338.3,2.45929257]
[1769969082971,2.368019,2339.9,2338.6,2.45929257]
[1769969083166,2.368019,2340.5,2338.6,2.45929257]
[1769969083568,2.368019,2340.5,2338.7,2.45929257]
[1769969084372,2.368019,2340.5,2338.7,2.67326257]
[1769969084572,2.368019,2340.5,2338.7,2.45929257]
[1769969085567,2.368019,2340.5,2338.8,0.21396]
[1769969085771,2.368019,2340.5,2338.8,2.36242257]
[1769969086670,2.46074872,2341.3,2339.2,2.57634257]
[1769969086873,2.46074872,2341.1,2339.2,2.36242257]
[1769969087272,2.46074872,2341.1,2339.3,2.36242257]
[1769969087671,2.67449872,2341.1,2339.3,2.36242257]
[1769969087970,2.46074872,2341.1,2339.3,2.36242257]
[1769969088174,2.46074872,2341.1,2339.5,2.36242257]
[1769969088571,2.46074872,2341.1,2339.4,4.77579387]
[1769969088768,2.46074872,2341.1,2339.5,2.36242257]
[1769969088967,2.46074872,2341.1,2339.5,7.16012334]
[1769969089171,2.46074872,2341.1,2339.5,2.36242257]
[1769969090272,2.46074872,2341.8,2340.2,2.36242257]
[1769969090680,2.46074872,2341.8,2340.3,2.36242257]
[1769969090969,2.46074872,2341.8,2340.6,2.36242257]
[1769969091171,2.46074872,2341.8,2340.6,7.09515727]
[1769969091368,2.46074872,2341.8,2340.6,4.8469584]
[1769969091573,2.46074872,2342.5,2340.7,2.36242257]
[1769969091772,2.46074872,2342.0,2340.4,2.48453583]
[1769969091968,2.67442872,2342.0,2340.3,4.8469584]
[1769969092177,2.46074872,2341.3,2339.9,6.21242257]
[1769969092569,2.46074872,2341.3,2340.0,2.36242257]
[1769969093377,2.46074872,2341.8,2340.1,2.36242257]
[1769969094476,2.46074872,2341.8,2340.0,4.7316933]
[1769969094677,2.46074872,2341.3,2339.8,2.36242257]
[1769969095073,2.46074872,2341.3,2339.8,7.08124516]
[1769969095278,2.46074872,2341.3,2339.9,2.36242257]
[1769969095579,2.46074872,2341.1,2339.5,2.36242257]
[1769969096080,2.67449872,2341.1,2339.5,2.36242257]
[1769969096281,2.67451872,2340.9,2339.3,2.48453583]
[1769969096576,2.67452872,2340.8,2339.2,2.48453583]
[1769969096779,2.46074872,2340.6,2339.1,4.8469584]
[1769969096973,2.46387414,2340.6,2339.2,7.08835273]
[1769969097171,2.46387414,2340.6,2339.2,4.8469584]
[1769969097881,0.00312542,2340.6,2339.5,2.36242257]
[1769969098280,0.00312542,2340.6,2339.5,4.8469584]
[1769969098477,0.00312542,2340.6,2339.6,2.36242257]
[1769969100081,2.46387414,2340.6,2339.2,4.8469584]
[1769969100278,2.508,2341.9,2340.0,2.36242257]
[1769969100279,2.46074872,2341.4,2340.0,2.36242257]
[1769969100580,2.46074872,2341.3,2339.9,2.36242257]
[1769969100777,2.46074872,2340.5,2339.4,2.48453583]
[1769969101079,3.849,2340.7,2339.1,0.0044988]
[1769969101274,0.21386,2340.0,2338.1,2.48453583]
[1769969101478,2.508,2340.2,2338.1,2.48453583]
[1769969101782,2.508,2340.2,2338.0,2.48453583]
[1769969101984,0.21389,2339.6,2337.8,4.8469584]
[1769969102181,3.849,2339.5,2337.8,2.36242257]
[1769969102377,0.21392,2339.3,2337.8,0.00310106]
[1769969102682,0.21395,2339.0,2337.1,2.48453583]
[1769969102982,0.21395,2339.0,2337.0,2.36242257]
[1769969102983,2.508,2338.9,2337.0,2.36242257]
[1769969103283,2.508,2338.9,2336.8,3.849]
[1769969103284,2.46074872,2338.6,2336.8,3.849]
[1769969103582,2.46074872,2338.4,2336.6,2.36242257]
[1769969103785,2.46074872,2338.4,2336.6,2.36566654]
[1769969104088,2.46074872,2338.4,2336.7,2.36242257]
[1769969104482,3.85,2339.0,2337.2,2.36242257]
[1769969104785,2.46074872,2338.9,2337.3,2.36242257]
[1769969104982,2.46074872,2338.9,2336.8,2.36242257]